{"text_format":"1","workbook":"xlsx","n_sheets":9,"sheets":["1. Informations générales","2. Extrait du livre-journal","A. Invest bien corp.","B. Invest logiciel brevet","C. Dép. brevet logiciel","D. Dép. prest. extérieurs","E. Dép. de personnel","F. Dép. en formation","3. Synthèse financière"],"not_rendered":{"charts":0,"images":1,"macros":1,"external_links":0,"defined_names":6,"comments":8,"pivot_tables":0},"unopened":[],"bounds":{"document_bytes":16777216,"sheet_cells":100000,"rows_first":2000,"rows_last":500,"rows_between":2000,"halvings":0,"cell_chars":16384,"cell_head_chars":4096},"cells_cut":0,"cells_raw":0,"read":"whole","date_system":"1900"}

{"sheet":"1. Informations générales","index":0,"n_rows":54,"n_cols":4,"rows_kept":54,"cut":false,"hidden":false,"merged":[[1,2,4,3],[7,0,7,3],[43,0,43,3],[53,0,53,3],[55,1,60,2],[9,0,9,3],[21,0,21,3],[28,0,28,3],[34,0,34,3]]}
[]
[null,null,"Important : Pour garantir le bon fonctionnement du fichier, veuillez télécharger le document sur votre ordinateur et activer le contenu lors de son ouverture.\nÀ défaut, le fichier ne pourra pas être utilisé."]
[]
[]
[]
[]
[]
["Certificat pour la bonification d’impôt - Déclaration des dépenses réelles\nVeuillez lire attentivement les remarques figurant dans les cellules marquées d’un triangle rouge dans le coin supérieur droit"]
[]
["Identifiants projet"]
[]
[null,"Nom de la société"]
[null,"Nom du projet"]
[null,"Numéro référence attestation d'éligibilité"]
[null,"Date avenant 1 (si applicable)",null,{"$f":"+COUNTIFS(C15:C19,\"<>\"&\"\")","v":0}]
[null,"Date avenant 2 (si applicable)"]
[null,"Date avenant 3 (si applicable)"]
[null,"Date avenant 4 (si applicable)"]
[null,"Date avenant 5 (si applicable)"]
[]
[]
["Informations sur le projet et l'attestation d'éligibilité"]
[]
[null,"Date début de la période d'admissibilité des coûts "]
[null,"Date fin de la période d'admissibilité des coûts "]
[null,"Coûts totaux admissibles selon l'attestation d'éligibilité"]
[]
[]
["Informations sur l'exercice d'exploitation faisant l'objet de la présente demande de certificat"]
[]
[null,"Date début de l'exercice d'exploitation"]
[null,"Date fin de l'exercice d'exploitation"]
[]
[]
["Déclarations quant aux périodes de paiement antérieures"]
[]
[null,"Certificats déjà émis","Montant certifié"]
[null,"Certificat 1"]
[null,"Certificat 2"]
[null,"Certificat 3"]
[null,"Montant total",{"$f":"+SUM(C38:C40)","v":0}]
[]
[]
["Catégories de dépenses à déclarer pour le présent certificat"]
[]
[null,"A. Investissements en biens amortissables corporels"]
[null,"B. Investissement en logiciel(s) ou en brevet(s)"]
[null,"C. Dépenses de licence de brevet(s) ou de logiciel(s)"]
[null,"D. Dépenses de service(s) de prestataire(s) extérieur(s)"]
[null,"E. Dépenses de personnel "]
[null,"F. Dépenses en formation du personnel"]
[]
[]
["Etat d'avancement général du projet"]

{"sheet":"2. Extrait du livre-journal","index":1,"n_rows":5,"n_cols":8,"rows_kept":5,"cut":false,"hidden":false,"merged":[[1,1,1,7]]}
[]
[null,"2. Extrait du livre-journal\nVeuillez renseigner au minimum les informations demandées ci-dessous. Vous pouvez également insérer une extraction issue de votre logiciel comptable."]
[]
[]
[null,"Référence interne","Numéro de la facture concernée","Date de comptabilisation","Compte du grand livre","Intitulé","Montant","Devise"]

{"sheet":"A. Invest bien corp.","index":2,"n_rows":49,"n_cols":9,"rows_kept":49,"cut":false,"hidden":true,"merged":[[0,2,0,8],[4,7,6,7],[4,8,6,8],[4,2,6,2],[4,3,6,3],[4,4,6,4],[4,5,6,5],[4,6,6,6]]}
[null,null,"A. Investissement en bien(s) corporel(s)\nLes bâtiments et véhicules automoteurs ne sont pas éligibles. Les investissements doivent être amortis sur au moins trois ans."]
[]
[null,null,"Période d'admissibilité des coûts ",{"$f":"'1. Informations générales'!C24","v":"00:00:00"},"au",{"$f":"'1. Informations générales'!C25","v":"00:00:00"}]
[]
[null,null,"Fournisseur","Description des investissements","Numéro de facture","Date de comptabilisation","Coût d'acquisition hTVA (déduction faite des RRR) (en €)","Coûts dans période d'éligibilité des coûts (en €)","Remarque bénéficiaire"]
[]
[]
[null,1,null,null,null,null,null,{"$f":"IF(AND(F8>='1. Informations générales'!$C$24,F8<='1. Informations générales'!$C$25),G8,\"0.00 €\")","v":0}]
[null,{"$f":"1+B8","v":2},null,null,null,null,null,{"$f":"IF(AND(F9>='1. Informations générales'!$C$24,F9<='1. Informations générales'!$C$25),G9,\"0.00 €\")","v":0}]
[null,{"$f":"1+B9","v":3},null,null,null,null,null,{"$f":"IF(AND(F10>='1. Informations générales'!$C$24,F10<='1. Informations générales'!$C$25),G10,\"0.00 €\")","v":0}]
[null,4,null,null,null,null,null,{"$f":"IF(AND(F11>='1. Informations générales'!$C$24,F11<='1. Informations générales'!$C$25),G11,\"0.00 €\")","v":0}]
[null,5,null,null,null,null,null,{"$f":"IF(AND(F12>='1. Informations générales'!$C$24,F12<='1. Informations générales'!$C$25),G12,\"0.00 €\")","v":0}]
[null,6,null,null,null,null,null,{"$f":"IF(AND(F13>='1. Informations générales'!$C$24,F13<='1. Informations générales'!$C$25),G13,\"0.00 €\")","v":0}]
[null,7,null,null,null,null,null,{"$f":"IF(AND(F14>='1. Informations générales'!$C$24,F14<='1. Informations générales'!$C$25),G14,\"0.00 €\")","v":0}]
[null,8,null,null,null,null,null,{"$f":"IF(AND(F15>='1. Informations générales'!$C$24,F15<='1. Informations générales'!$C$25),G15,\"0.00 €\")","v":0}]
[null,9,null,null,null,null,null,{"$f":"IF(AND(F16>='1. Informations générales'!$C$24,F16<='1. Informations générales'!$C$25),G16,\"0.00 €\")","v":0}]
[null,10,null,null,null,null,null,{"$f":"IF(AND(F17>='1. Informations générales'!$C$24,F17<='1. Informations générales'!$C$25),G17,\"0.00 €\")","v":0}]
[null,11,null,null,null,null,null,{"$f":"IF(AND(F18>='1. Informations générales'!$C$24,F18<='1. Informations générales'!$C$25),G18,\"0.00 €\")","v":0}]
[null,12,null,null,null,null,null,{"$f":"IF(AND(F19>='1. Informations générales'!$C$24,F19<='1. Informations générales'!$C$25),G19,\"0.00 €\")","v":0}]
[null,13,null,null,null,null,null,{"$f":"IF(AND(F20>='1. Informations générales'!$C$24,F20<='1. Informations générales'!$C$25),G20,\"0.00 €\")","v":0}]
[null,14,null,null,null,null,null,{"$f":"IF(AND(F21>='1. Informations générales'!$C$24,F21<='1. Informations générales'!$C$25),G21,\"0.00 €\")","v":0}]
[null,15,null,null,null,null,null,{"$f":"IF(AND(F22>='1. Informations générales'!$C$24,F22<='1. Informations générales'!$C$25),G22,\"0.00 €\")","v":0}]
[null,16,null,null,null,null,null,{"$f":"IF(AND(F23>='1. Informations générales'!$C$24,F23<='1. Informations générales'!$C$25),G23,\"0.00 €\")","v":0}]
[null,17,null,null,null,null,null,{"$f":"IF(AND(F24>='1. Informations générales'!$C$24,F24<='1. Informations générales'!$C$25),G24,\"0.00 €\")","v":0}]
[null,18,null,null,null,null,null,{"$f":"IF(AND(F25>='1. Informations générales'!$C$24,F25<='1. Informations générales'!$C$25),G25,\"0.00 €\")","v":0}]
[null,19,null,null,null,null,null,{"$f":"IF(AND(F26>='1. Informations générales'!$C$24,F26<='1. Informations générales'!$C$25),G26,\"0.00 €\")","v":0}]
[null,20,null,null,null,null,null,{"$f":"IF(AND(F27>='1. Informations générales'!$C$24,F27<='1. Informations générales'!$C$25),G27,\"0.00 €\")","v":0}]
[null,21,null,null,null,null,null,{"$f":"IF(AND(F28>='1. Informations générales'!$C$24,F28<='1. Informations générales'!$C$25),G28,\"0.00 €\")","v":0}]
[null,22,null,null,null,null,null,{"$f":"IF(AND(F29>='1. Informations générales'!$C$24,F29<='1. Informations générales'!$C$25),G29,\"0.00 €\")","v":0}]
[null,23,null,null,null,null,null,{"$f":"IF(AND(F30>='1. Informations générales'!$C$24,F30<='1. Informations générales'!$C$25),G30,\"0.00 €\")","v":0}]
[null,24,null,null,null,null,null,{"$f":"IF(AND(F31>='1. Informations générales'!$C$24,F31<='1. Informations générales'!$C$25),G31,\"0.00 €\")","v":0}]
[null,25,null,null,null,null,null,{"$f":"IF(AND(F32>='1. Informations générales'!$C$24,F32<='1. Informations générales'!$C$25),G32,\"0.00 €\")","v":0}]
[null,26,null,null,null,null,null,{"$f":"IF(AND(F33>='1. Informations générales'!$C$24,F33<='1. Informations générales'!$C$25),G33,\"0.00 €\")","v":0}]
[null,27,null,null,null,null,null,{"$f":"IF(AND(F34>='1. Informations générales'!$C$24,F34<='1. Informations générales'!$C$25),G34,\"0.00 €\")","v":0}]
[null,28,null,null,null,null,null,{"$f":"IF(AND(F35>='1. Informations générales'!$C$24,F35<='1. Informations générales'!$C$25),G35,\"0.00 €\")","v":0}]
[null,29,null,null,null,null,null,{"$f":"IF(AND(F36>='1. Informations générales'!$C$24,F36<='1. Informations générales'!$C$25),G36,\"0.00 €\")","v":0}]
[null,30,null,null,null,null,null,{"$f":"IF(AND(F37>='1. Informations générales'!$C$24,F37<='1. Informations générales'!$C$25),G37,\"0.00 €\")","v":0}]
[null,31,null,null,null,null,null,{"$f":"IF(AND(F38>='1. Informations générales'!$C$24,F38<='1. Informations générales'!$C$25),G38,\"0.00 €\")","v":0}]
[null,32,null,null,null,null,null,{"$f":"IF(AND(F39>='1. Informations générales'!$C$24,F39<='1. Informations générales'!$C$25),G39,\"0.00 €\")","v":0}]
[null,33,null,null,null,null,null,{"$f":"IF(AND(F40>='1. Informations générales'!$C$24,F40<='1. Informations générales'!$C$25),G40,\"0.00 €\")","v":0}]
[null,34,null,null,null,null,null,{"$f":"IF(AND(F41>='1. Informations générales'!$C$24,F41<='1. Informations générales'!$C$25),G41,\"0.00 €\")","v":0}]
[null,35,null,null,null,null,null,{"$f":"IF(AND(F42>='1. Informations générales'!$C$24,F42<='1. Informations générales'!$C$25),G42,\"0.00 €\")","v":0}]
[null,36,null,null,null,null,null,{"$f":"IF(AND(F43>='1. Informations générales'!$C$24,F43<='1. Informations générales'!$C$25),G43,\"0.00 €\")","v":0}]
[null,37,null,null,null,null,null,{"$f":"IF(AND(F44>='1. Informations générales'!$C$24,F44<='1. Informations générales'!$C$25),G44,\"0.00 €\")","v":0}]
[null,38,null,null,null,null,null,{"$f":"IF(AND(F45>='1. Informations générales'!$C$24,F45<='1. Informations générales'!$C$25),G45,\"0.00 €\")","v":0}]
[null,39,null,null,null,null,null,{"$f":"IF(AND(F46>='1. Informations générales'!$C$24,F46<='1. Informations générales'!$C$25),G46,\"0.00 €\")","v":0}]
[null,40,null,null,null,null,null,{"$f":"IF(AND(F47>='1. Informations générales'!$C$24,F47<='1. Informations générales'!$C$25),G47,\"0.00 €\")","v":0}]
[]
[null,null,"Total investissements",null,null,null,{"$f":"+SUM(G8:G48)","v":0},{"$f":"SUM(H8:H48)","v":0}]

{"sheet":"B. Invest logiciel brevet","index":3,"n_rows":49,"n_cols":9,"rows_kept":49,"cut":false,"hidden":true,"merged":[[0,2,0,8],[4,7,6,7],[4,8,6,8],[4,2,6,2],[4,3,6,3],[4,4,6,4],[4,5,6,5],[4,6,6,6]]}
[null,null,"B. Investissement en logicie(s) ou brevet(s)\nLes logiciels ou brevets acquis d'une entreprise liée ne sont pas éligibles. Doivent être amortis au sur moins trois ans."]
[]
[null,null,"Période d'admissibilité des coûts ",{"$f":"'1. Informations générales'!C24","v":"00:00:00"},"au",{"$f":"'1. Informations générales'!C25","v":"00:00:00"}]
[]
[null,null,"Dénomination précise logiciel(s) ou brevet(s)","Description de son utilité","Numéro de facture","Date de comptabilisation","Coût d'acquisition hTVA (déduction faite des RRR) (en €)","Coûts dans période d'éligibilité des coûts (en €)","Remarque bénéficiaire"]
[]
[]
[null,1,null,null,null,null,null,{"$f":"IF(AND(F8>='1. Informations générales'!$C$24,F8<='1. Informations générales'!$C$25),G8,\"0.00 €\")","v":0}]
[null,{"$f":"1+B8","v":2},null,null,null,null,null,{"$f":"IF(AND(F9>='1. Informations générales'!$C$24,F9<='1. Informations générales'!$C$25),G9,\"0.00 €\")","v":0}]
[null,{"$f":"1+B9","v":3},null,null,null,null,null,{"$f":"IF(AND(F10>='1. Informations générales'!$C$24,F10<='1. Informations générales'!$C$25),G10,\"0.00 €\")","v":0}]
[null,4,null,null,null,null,null,{"$f":"IF(AND(F11>='1. Informations générales'!$C$24,F11<='1. Informations générales'!$C$25),G11,\"0.00 €\")","v":0}]
[null,5,null,null,null,null,null,{"$f":"IF(AND(F12>='1. Informations générales'!$C$24,F12<='1. Informations générales'!$C$25),G12,\"0.00 €\")","v":0}]
[null,6,null,null,null,null,null,{"$f":"IF(AND(F13>='1. Informations générales'!$C$24,F13<='1. Informations générales'!$C$25),G13,\"0.00 €\")","v":0}]
[null,7,null,null,null,null,null,{"$f":"IF(AND(F14>='1. Informations générales'!$C$24,F14<='1. Informations générales'!$C$25),G14,\"0.00 €\")","v":0}]
[null,8,null,null,null,null,null,{"$f":"IF(AND(F15>='1. Informations générales'!$C$24,F15<='1. Informations générales'!$C$25),G15,\"0.00 €\")","v":0}]
[null,9,null,null,null,null,null,{"$f":"IF(AND(F16>='1. Informations générales'!$C$24,F16<='1. Informations générales'!$C$25),G16,\"0.00 €\")","v":0}]
[null,10,null,null,null,null,null,{"$f":"IF(AND(F17>='1. Informations générales'!$C$24,F17<='1. Informations générales'!$C$25),G17,\"0.00 €\")","v":0}]
[null,11,null,null,null,null,null,{"$f":"IF(AND(F18>='1. Informations générales'!$C$24,F18<='1. Informations générales'!$C$25),G18,\"0.00 €\")","v":0}]
[null,12,null,null,null,null,null,{"$f":"IF(AND(F19>='1. Informations générales'!$C$24,F19<='1. Informations générales'!$C$25),G19,\"0.00 €\")","v":0}]
[null,13,null,null,null,null,null,{"$f":"IF(AND(F20>='1. Informations générales'!$C$24,F20<='1. Informations générales'!$C$25),G20,\"0.00 €\")","v":0}]
[null,14,null,null,null,null,null,{"$f":"IF(AND(F21>='1. Informations générales'!$C$24,F21<='1. Informations générales'!$C$25),G21,\"0.00 €\")","v":0}]
[null,15,null,null,null,null,null,{"$f":"IF(AND(F22>='1. Informations générales'!$C$24,F22<='1. Informations générales'!$C$25),G22,\"0.00 €\")","v":0}]
[null,16,null,null,null,null,null,{"$f":"IF(AND(F23>='1. Informations générales'!$C$24,F23<='1. Informations générales'!$C$25),G23,\"0.00 €\")","v":0}]
[null,17,null,null,null,null,null,{"$f":"IF(AND(F24>='1. Informations générales'!$C$24,F24<='1. Informations générales'!$C$25),G24,\"0.00 €\")","v":0}]
[null,18,null,null,null,null,null,{"$f":"IF(AND(F25>='1. Informations générales'!$C$24,F25<='1. Informations générales'!$C$25),G25,\"0.00 €\")","v":0}]
[null,19,null,null,null,null,null,{"$f":"IF(AND(F26>='1. Informations générales'!$C$24,F26<='1. Informations générales'!$C$25),G26,\"0.00 €\")","v":0}]
[null,20,null,null,null,null,null,{"$f":"IF(AND(F27>='1. Informations générales'!$C$24,F27<='1. Informations générales'!$C$25),G27,\"0.00 €\")","v":0}]
[null,21,null,null,null,null,null,{"$f":"IF(AND(F28>='1. Informations générales'!$C$24,F28<='1. Informations générales'!$C$25),G28,\"0.00 €\")","v":0}]
[null,22,null,null,null,null,null,{"$f":"IF(AND(F29>='1. Informations générales'!$C$24,F29<='1. Informations générales'!$C$25),G29,\"0.00 €\")","v":0}]
[null,23,null,null,null,null,null,{"$f":"IF(AND(F30>='1. Informations générales'!$C$24,F30<='1. Informations générales'!$C$25),G30,\"0.00 €\")","v":0}]
[null,24,null,null,null,null,null,{"$f":"IF(AND(F31>='1. Informations générales'!$C$24,F31<='1. Informations générales'!$C$25),G31,\"0.00 €\")","v":0}]
[null,25,null,null,null,null,null,{"$f":"IF(AND(F32>='1. Informations générales'!$C$24,F32<='1. Informations générales'!$C$25),G32,\"0.00 €\")","v":0}]
[null,26,null,null,null,null,null,{"$f":"IF(AND(F33>='1. Informations générales'!$C$24,F33<='1. Informations générales'!$C$25),G33,\"0.00 €\")","v":0}]
[null,27,null,null,null,null,null,{"$f":"IF(AND(F34>='1. Informations générales'!$C$24,F34<='1. Informations générales'!$C$25),G34,\"0.00 €\")","v":0}]
[null,28,null,null,null,null,null,{"$f":"IF(AND(F35>='1. Informations générales'!$C$24,F35<='1. Informations générales'!$C$25),G35,\"0.00 €\")","v":0}]
[null,29,null,null,null,null,null,{"$f":"IF(AND(F36>='1. Informations générales'!$C$24,F36<='1. Informations générales'!$C$25),G36,\"0.00 €\")","v":0}]
[null,30,null,null,null,null,null,{"$f":"IF(AND(F37>='1. Informations générales'!$C$24,F37<='1. Informations générales'!$C$25),G37,\"0.00 €\")","v":0}]
[null,31,null,null,null,null,null,{"$f":"IF(AND(F38>='1. Informations générales'!$C$24,F38<='1. Informations générales'!$C$25),G38,\"0.00 €\")","v":0}]
[null,32,null,null,null,null,null,{"$f":"IF(AND(F39>='1. Informations générales'!$C$24,F39<='1. Informations générales'!$C$25),G39,\"0.00 €\")","v":0}]
[null,33,null,null,null,null,null,{"$f":"IF(AND(F40>='1. Informations générales'!$C$24,F40<='1. Informations générales'!$C$25),G40,\"0.00 €\")","v":0}]
[null,34,null,null,null,null,null,{"$f":"IF(AND(F41>='1. Informations générales'!$C$24,F41<='1. Informations générales'!$C$25),G41,\"0.00 €\")","v":0}]
[null,35,null,null,null,null,null,{"$f":"IF(AND(F42>='1. Informations générales'!$C$24,F42<='1. Informations générales'!$C$25),G42,\"0.00 €\")","v":0}]
[null,36,null,null,null,null,null,{"$f":"IF(AND(F43>='1. Informations générales'!$C$24,F43<='1. Informations générales'!$C$25),G43,\"0.00 €\")","v":0}]
[null,37,null,null,null,null,null,{"$f":"IF(AND(F44>='1. Informations générales'!$C$24,F44<='1. Informations générales'!$C$25),G44,\"0.00 €\")","v":0}]
[null,38,null,null,null,null,null,{"$f":"IF(AND(F45>='1. Informations générales'!$C$24,F45<='1. Informations générales'!$C$25),G45,\"0.00 €\")","v":0}]
[null,39,null,null,null,null,null,{"$f":"IF(AND(F46>='1. Informations générales'!$C$24,F46<='1. Informations générales'!$C$25),G46,\"0.00 €\")","v":0}]
[null,40,null,null,null,null,null,{"$f":"IF(AND(F47>='1. Informations générales'!$C$24,F47<='1. Informations générales'!$C$25),G47,\"0.00 €\")","v":0}]
[]
[null,null,"Total investissements",null,null,null,{"$f":"+SUM(G8:G48)","v":0},{"$f":"SUM(H8:H48)","v":0}]

{"sheet":"C. Dép. brevet logiciel","index":4,"n_rows":49,"n_cols":9,"rows_kept":49,"cut":false,"hidden":true,"merged":[[0,2,0,8],[4,7,6,7],[4,8,6,8],[4,2,6,2],[4,3,6,3],[4,4,6,4],[4,5,6,5],[4,6,6,6]]}
[null,null,"C. Dépenses de licence de brevet(s) ou de logiciel(s)\nLes licences de logiciels qui sont ne sont pas installées et exploitées sur le territoir luxembourgeois ne sont pas éligibles. Les dépenses pour l'usage de logiciels ou brevets concédés par une entreprise liée ne sont pas éligibles."]
[]
[null,null,"Période d'admissibilité des coûts ",{"$f":"'1. Informations générales'!C24","v":"00:00:00"},"au",{"$f":"'1. Informations générales'!C25","v":"00:00:00"}]
[]
[null,null,"Dénomination précise logiciel(s) ou brevet(s)","Description de son utilité","Numéro de facture","Date de comptabilisation","Coût d'acquisition hTVA (déduction faite des RRR) (en €)","Coûts dans période d'éligibilité des coûts (en €)","Remarque bénéficiaire"]
[]
[]
[null,1,null,null,null,null,null,{"$f":"IF(AND(F8>='1. Informations générales'!$C$24,F8<='1. Informations générales'!$C$25),G8,\"0.00 €\")","v":0}]
[null,{"$f":"1+B8","v":2},null,null,null,null,null,{"$f":"IF(AND(F9>='1. Informations générales'!$C$24,F9<='1. Informations générales'!$C$25),G9,\"0.00 €\")","v":0}]
[null,{"$f":"1+B9","v":3},null,null,null,null,null,{"$f":"IF(AND(F10>='1. Informations générales'!$C$24,F10<='1. Informations générales'!$C$25),G10,\"0.00 €\")","v":0}]
[null,4,null,null,null,null,null,{"$f":"IF(AND(F11>='1. Informations générales'!$C$24,F11<='1. Informations générales'!$C$25),G11,\"0.00 €\")","v":0}]
[null,5,null,null,null,null,null,{"$f":"IF(AND(F12>='1. Informations générales'!$C$24,F12<='1. Informations générales'!$C$25),G12,\"0.00 €\")","v":0}]
[null,6,null,null,null,null,null,{"$f":"IF(AND(F13>='1. Informations générales'!$C$24,F13<='1. Informations générales'!$C$25),G13,\"0.00 €\")","v":0}]
[null,7,null,null,null,null,null,{"$f":"IF(AND(F14>='1. Informations générales'!$C$24,F14<='1. Informations générales'!$C$25),G14,\"0.00 €\")","v":0}]
[null,8,null,null,null,null,null,{"$f":"IF(AND(F15>='1. Informations générales'!$C$24,F15<='1. Informations générales'!$C$25),G15,\"0.00 €\")","v":0}]
[null,9,null,null,null,null,null,{"$f":"IF(AND(F16>='1. Informations générales'!$C$24,F16<='1. Informations générales'!$C$25),G16,\"0.00 €\")","v":0}]
[null,10,null,null,null,null,null,{"$f":"IF(AND(F17>='1. Informations générales'!$C$24,F17<='1. Informations générales'!$C$25),G17,\"0.00 €\")","v":0}]
[null,11,null,null,null,null,null,{"$f":"IF(AND(F18>='1. Informations générales'!$C$24,F18<='1. Informations générales'!$C$25),G18,\"0.00 €\")","v":0}]
[null,12,null,null,null,null,null,{"$f":"IF(AND(F19>='1. Informations générales'!$C$24,F19<='1. Informations générales'!$C$25),G19,\"0.00 €\")","v":0}]
[null,13,null,null,null,null,null,{"$f":"IF(AND(F20>='1. Informations générales'!$C$24,F20<='1. Informations générales'!$C$25),G20,\"0.00 €\")","v":0}]
[null,14,null,null,null,null,null,{"$f":"IF(AND(F21>='1. Informations générales'!$C$24,F21<='1. Informations générales'!$C$25),G21,\"0.00 €\")","v":0}]
[null,15,null,null,null,null,null,{"$f":"IF(AND(F22>='1. Informations générales'!$C$24,F22<='1. Informations générales'!$C$25),G22,\"0.00 €\")","v":0}]
[null,16,null,null,null,null,null,{"$f":"IF(AND(F23>='1. Informations générales'!$C$24,F23<='1. Informations générales'!$C$25),G23,\"0.00 €\")","v":0}]
[null,17,null,null,null,null,null,{"$f":"IF(AND(F24>='1. Informations générales'!$C$24,F24<='1. Informations générales'!$C$25),G24,\"0.00 €\")","v":0}]
[null,18,null,null,null,null,null,{"$f":"IF(AND(F25>='1. Informations générales'!$C$24,F25<='1. Informations générales'!$C$25),G25,\"0.00 €\")","v":0}]
[null,19,null,null,null,null,null,{"$f":"IF(AND(F26>='1. Informations générales'!$C$24,F26<='1. Informations générales'!$C$25),G26,\"0.00 €\")","v":0}]
[null,20,null,null,null,null,null,{"$f":"IF(AND(F27>='1. Informations générales'!$C$24,F27<='1. Informations générales'!$C$25),G27,\"0.00 €\")","v":0}]
[null,21,null,null,null,null,null,{"$f":"IF(AND(F28>='1. Informations générales'!$C$24,F28<='1. Informations générales'!$C$25),G28,\"0.00 €\")","v":0}]
[null,22,null,null,null,null,null,{"$f":"IF(AND(F29>='1. Informations générales'!$C$24,F29<='1. Informations générales'!$C$25),G29,\"0.00 €\")","v":0}]
[null,23,null,null,null,null,null,{"$f":"IF(AND(F30>='1. Informations générales'!$C$24,F30<='1. Informations générales'!$C$25),G30,\"0.00 €\")","v":0}]
[null,24,null,null,null,null,null,{"$f":"IF(AND(F31>='1. Informations générales'!$C$24,F31<='1. Informations générales'!$C$25),G31,\"0.00 €\")","v":0}]
[null,25,null,null,null,null,null,{"$f":"IF(AND(F32>='1. Informations générales'!$C$24,F32<='1. Informations générales'!$C$25),G32,\"0.00 €\")","v":0}]
[null,26,null,null,null,null,null,{"$f":"IF(AND(F33>='1. Informations générales'!$C$24,F33<='1. Informations générales'!$C$25),G33,\"0.00 €\")","v":0}]
[null,27,null,null,null,null,null,{"$f":"IF(AND(F34>='1. Informations générales'!$C$24,F34<='1. Informations générales'!$C$25),G34,\"0.00 €\")","v":0}]
[null,28,null,null,null,null,null,{"$f":"IF(AND(F35>='1. Informations générales'!$C$24,F35<='1. Informations générales'!$C$25),G35,\"0.00 €\")","v":0}]
[null,29,null,null,null,null,null,{"$f":"IF(AND(F36>='1. Informations générales'!$C$24,F36<='1. Informations générales'!$C$25),G36,\"0.00 €\")","v":0}]
[null,30,null,null,null,null,null,{"$f":"IF(AND(F37>='1. Informations générales'!$C$24,F37<='1. Informations générales'!$C$25),G37,\"0.00 €\")","v":0}]
[null,31,null,null,null,null,null,{"$f":"IF(AND(F38>='1. Informations générales'!$C$24,F38<='1. Informations générales'!$C$25),G38,\"0.00 €\")","v":0}]
[null,32,null,null,null,null,null,{"$f":"IF(AND(F39>='1. Informations générales'!$C$24,F39<='1. Informations générales'!$C$25),G39,\"0.00 €\")","v":0}]
[null,33,null,null,null,null,null,{"$f":"IF(AND(F40>='1. Informations générales'!$C$24,F40<='1. Informations générales'!$C$25),G40,\"0.00 €\")","v":0}]
[null,34,null,null,null,null,null,{"$f":"IF(AND(F41>='1. Informations générales'!$C$24,F41<='1. Informations générales'!$C$25),G41,\"0.00 €\")","v":0}]
[null,35,null,null,null,null,null,{"$f":"IF(AND(F42>='1. Informations générales'!$C$24,F42<='1. Informations générales'!$C$25),G42,\"0.00 €\")","v":0}]
[null,36,null,null,null,null,null,{"$f":"IF(AND(F43>='1. Informations générales'!$C$24,F43<='1. Informations générales'!$C$25),G43,\"0.00 €\")","v":0}]
[null,37,null,null,null,null,null,{"$f":"IF(AND(F44>='1. Informations générales'!$C$24,F44<='1. Informations générales'!$C$25),G44,\"0.00 €\")","v":0}]
[null,38,null,null,null,null,null,{"$f":"IF(AND(F45>='1. Informations générales'!$C$24,F45<='1. Informations générales'!$C$25),G45,\"0.00 €\")","v":0}]
[null,39,null,null,null,null,null,{"$f":"IF(AND(F46>='1. Informations générales'!$C$24,F46<='1. Informations générales'!$C$25),G46,\"0.00 €\")","v":0}]
[null,40,null,null,null,null,null,{"$f":"IF(AND(F47>='1. Informations générales'!$C$24,F47<='1. Informations générales'!$C$25),G47,\"0.00 €\")","v":0}]
[]
[null,null,"Total dépenses",null,null,null,{"$f":"+SUM(G8:G48)","v":0},{"$f":"SUM(H8:H48)","v":0}]

{"sheet":"D. Dép. prest. extérieurs","index":5,"n_rows":49,"n_cols":9,"rows_kept":49,"cut":false,"hidden":true,"merged":[[0,2,0,8],[4,7,6,7],[4,8,6,8],[4,2,6,2],[4,3,6,3],[4,4,6,4],[4,5,6,5],[4,6,6,6]]}
[null,null,"D. Dépenses de service(s) de prestataire(s) extérieur(s)\nPour chacune des dépenses de service, veuillez indiquer le type de service (p.ex. diagnostic, appui technique, Cloud), la raison sociale de l’entreprise prestataire de service et le code pays de l’entreprise prestataire de service (p. ex. LU, FR, BE)."]
[]
[null,null,"Période d'admissibilité des coûts ",{"$f":"'1. Informations générales'!C24","v":"00:00:00"},"au",{"$f":"'1. Informations générales'!C25","v":"00:00:00"}]
[]
[null,null,"Fournisseur (raison sociale et code pays (e.g. LU, FR, BE))","type de service (e.g. diagnostic, appui technique, cloud)","Numéro de facture","Date de comptabilisation","Coût d'acquisition hTVA (déduction faite des RRR) (en €)","Coûts dans période d'éligibilité des coûts (en €)","Remarque bénéficiaire"]
[]
[]
[null,1,null,null,null,null,null,{"$f":"IF(AND(F8>='1. Informations générales'!$C$24,F8<='1. Informations générales'!$C$25),G8,\"0.00 €\")","v":0}]
[null,{"$f":"1+B8","v":2},null,null,null,null,null,{"$f":"IF(AND(F9>='1. Informations générales'!$C$24,F9<='1. Informations générales'!$C$25),G9,\"0.00 €\")","v":0}]
[null,{"$f":"1+B9","v":3},null,null,null,null,null,{"$f":"IF(AND(F10>='1. Informations générales'!$C$24,F10<='1. Informations générales'!$C$25),G10,\"0.00 €\")","v":0}]
[null,4,null,null,null,null,null,{"$f":"IF(AND(F11>='1. Informations générales'!$C$24,F11<='1. Informations générales'!$C$25),G11,\"0.00 €\")","v":0}]
[null,5,null,null,null,null,null,{"$f":"IF(AND(F12>='1. Informations générales'!$C$24,F12<='1. Informations générales'!$C$25),G12,\"0.00 €\")","v":0}]
[null,6,null,null,null,null,null,{"$f":"IF(AND(F13>='1. Informations générales'!$C$24,F13<='1. Informations générales'!$C$25),G13,\"0.00 €\")","v":0}]
[null,7,null,null,null,null,null,{"$f":"IF(AND(F14>='1. Informations générales'!$C$24,F14<='1. Informations générales'!$C$25),G14,\"0.00 €\")","v":0}]
[null,8,null,null,null,null,null,{"$f":"IF(AND(F15>='1. Informations générales'!$C$24,F15<='1. Informations générales'!$C$25),G15,\"0.00 €\")","v":0}]
[null,9,null,null,null,null,null,{"$f":"IF(AND(F16>='1. Informations générales'!$C$24,F16<='1. Informations générales'!$C$25),G16,\"0.00 €\")","v":0}]
[null,10,null,null,null,null,null,{"$f":"IF(AND(F17>='1. Informations générales'!$C$24,F17<='1. Informations générales'!$C$25),G17,\"0.00 €\")","v":0}]
[null,11,null,null,null,null,null,{"$f":"IF(AND(F18>='1. Informations générales'!$C$24,F18<='1. Informations générales'!$C$25),G18,\"0.00 €\")","v":0}]
[null,12,null,null,null,null,null,{"$f":"IF(AND(F19>='1. Informations générales'!$C$24,F19<='1. Informations générales'!$C$25),G19,\"0.00 €\")","v":0}]
[null,13,null,null,null,null,null,{"$f":"IF(AND(F20>='1. Informations générales'!$C$24,F20<='1. Informations générales'!$C$25),G20,\"0.00 €\")","v":0}]
[null,14,null,null,null,null,null,{"$f":"IF(AND(F21>='1. Informations générales'!$C$24,F21<='1. Informations générales'!$C$25),G21,\"0.00 €\")","v":0}]
[null,15,null,null,null,null,null,{"$f":"IF(AND(F22>='1. Informations générales'!$C$24,F22<='1. Informations générales'!$C$25),G22,\"0.00 €\")","v":0}]
[null,16,null,null,null,null,null,{"$f":"IF(AND(F23>='1. Informations générales'!$C$24,F23<='1. Informations générales'!$C$25),G23,\"0.00 €\")","v":0}]
[null,17,null,null,null,null,null,{"$f":"IF(AND(F24>='1. Informations générales'!$C$24,F24<='1. Informations générales'!$C$25),G24,\"0.00 €\")","v":0}]
[null,18,null,null,null,null,null,{"$f":"IF(AND(F25>='1. Informations générales'!$C$24,F25<='1. Informations générales'!$C$25),G25,\"0.00 €\")","v":0}]
[null,19,null,null,null,null,null,{"$f":"IF(AND(F26>='1. Informations générales'!$C$24,F26<='1. Informations générales'!$C$25),G26,\"0.00 €\")","v":0}]
[null,20,null,null,null,null,null,{"$f":"IF(AND(F27>='1. Informations générales'!$C$24,F27<='1. Informations générales'!$C$25),G27,\"0.00 €\")","v":0}]
[null,21,null,null,null,null,null,{"$f":"IF(AND(F28>='1. Informations générales'!$C$24,F28<='1. Informations générales'!$C$25),G28,\"0.00 €\")","v":0}]
[null,22,null,null,null,null,null,{"$f":"IF(AND(F29>='1. Informations générales'!$C$24,F29<='1. Informations générales'!$C$25),G29,\"0.00 €\")","v":0}]
[null,23,null,null,null,null,null,{"$f":"IF(AND(F30>='1. Informations générales'!$C$24,F30<='1. Informations générales'!$C$25),G30,\"0.00 €\")","v":0}]
[null,24,null,null,null,null,null,{"$f":"IF(AND(F31>='1. Informations générales'!$C$24,F31<='1. Informations générales'!$C$25),G31,\"0.00 €\")","v":0}]
[null,25,null,null,null,null,null,{"$f":"IF(AND(F32>='1. Informations générales'!$C$24,F32<='1. Informations générales'!$C$25),G32,\"0.00 €\")","v":0}]
[null,26,null,null,null,null,null,{"$f":"IF(AND(F33>='1. Informations générales'!$C$24,F33<='1. Informations générales'!$C$25),G33,\"0.00 €\")","v":0}]
[null,27,null,null,null,null,null,{"$f":"IF(AND(F34>='1. Informations générales'!$C$24,F34<='1. Informations générales'!$C$25),G34,\"0.00 €\")","v":0}]
[null,28,null,null,null,null,null,{"$f":"IF(AND(F35>='1. Informations générales'!$C$24,F35<='1. Informations générales'!$C$25),G35,\"0.00 €\")","v":0}]
[null,29,null,null,null,null,null,{"$f":"IF(AND(F36>='1. Informations générales'!$C$24,F36<='1. Informations générales'!$C$25),G36,\"0.00 €\")","v":0}]
[null,30,null,null,null,null,null,{"$f":"IF(AND(F37>='1. Informations générales'!$C$24,F37<='1. Informations générales'!$C$25),G37,\"0.00 €\")","v":0}]
[null,31,null,null,null,null,null,{"$f":"IF(AND(F38>='1. Informations générales'!$C$24,F38<='1. Informations générales'!$C$25),G38,\"0.00 €\")","v":0}]
[null,32,null,null,null,null,null,{"$f":"IF(AND(F39>='1. Informations générales'!$C$24,F39<='1. Informations générales'!$C$25),G39,\"0.00 €\")","v":0}]
[null,33,null,null,null,null,null,{"$f":"IF(AND(F40>='1. Informations générales'!$C$24,F40<='1. Informations générales'!$C$25),G40,\"0.00 €\")","v":0}]
[null,34,null,null,null,null,null,{"$f":"IF(AND(F41>='1. Informations générales'!$C$24,F41<='1. Informations générales'!$C$25),G41,\"0.00 €\")","v":0}]
[null,35,null,null,null,null,null,{"$f":"IF(AND(F42>='1. Informations générales'!$C$24,F42<='1. Informations générales'!$C$25),G42,\"0.00 €\")","v":0}]
[null,36,null,null,null,null,null,{"$f":"IF(AND(F43>='1. Informations générales'!$C$24,F43<='1. Informations générales'!$C$25),G43,\"0.00 €\")","v":0}]
[null,37,null,null,null,null,null,{"$f":"IF(AND(F44>='1. Informations générales'!$C$24,F44<='1. Informations générales'!$C$25),G44,\"0.00 €\")","v":0}]
[null,38,null,null,null,null,null,{"$f":"IF(AND(F45>='1. Informations générales'!$C$24,F45<='1. Informations générales'!$C$25),G45,\"0.00 €\")","v":0}]
[null,39,null,null,null,null,null,{"$f":"IF(AND(F46>='1. Informations générales'!$C$24,F46<='1. Informations générales'!$C$25),G46,\"0.00 €\")","v":0}]
[null,40,null,null,null,null,null,{"$f":"IF(AND(F47>='1. Informations générales'!$C$24,F47<='1. Informations générales'!$C$25),G47,\"0.00 €\")","v":0}]
[]
[null,null,"Total dépenses",null,null,null,{"$f":"+SUM(G8:G48)","v":0},{"$f":"SUM(H8:H48)","v":0}]

{"sheet":"E. Dép. de personnel","index":6,"n_rows":49,"n_cols":12,"rows_kept":49,"cut":false,"hidden":true,"merged":[[0,2,0,7],[4,7,6,7],[4,2,6,2],[4,3,6,3],[4,4,6,4],[4,5,6,5],[4,6,6,6]]}
[null,null,"E. Dépenses de personnel\nLes frais du personnel de l’entreprise directement affecté au projet. Les frais de personnel sont calculés sur base du salaire brut mensuel, hors prime, suppléments, bonification et autre avantage. Sont exclus du salaire brut mensuel, les cotisations sociales de l’employeur. Justificatifs à partager : Fiches de salaire (au moins une par personne tombant dans la période d’éligibilité) et Timesheets (relevé des heures effectivement consacrées au projet) ou documents équivalents, ainsi que tout autre justificatif pertinent."]
[]
[null,null,"Période d'admissibilité des coûts ",{"$f":"'1. Informations générales'!C24","v":"00:00:00"},"au",{"$f":"'1. Informations générales'!C25","v":"00:00:00"}]
[]
[null,null,"Nom du collaborateur impliqué directement dans le projet","Fonction","Salaire mensuel brut moyen de l'exercice d'exploitation \n(en €)","Total heures sur le projet pendant la période d'éligibilité des coûts (en €)","Dépenses réelles et éligibles\n (en €)","Remarque bénéficiaire"]
[]
[]
[null,1,null,null,null,null,{"$f":"E8/173*F8","v":0},null,null,null,null,{"$f":"+IFERROR(MIN(E8,10000*#REF!)/(173*#REF!),\"\")","v":""}]
[null,{"$f":"1+B8","v":2},null,null,null,null,{"$f":"E9/173*F9","v":0},null,null,null,null,{"$f":"+IFERROR(MIN(E9,10000*#REF!)/(173*#REF!),\"\")","v":""}]
[null,{"$f":"1+B9","v":3},null,null,null,null,0,null,null,null,null,{"$f":"+IFERROR(MIN(E10,10000*#REF!)/(173*#REF!),\"\")","v":""}]
[null,4,null,null,null,null,0,null,null,null,null,{"$f":"+IFERROR(MIN(E11,10000*#REF!)/(173*#REF!),\"\")","v":""}]
[null,5,null,null,null,null,0,null,null,null,null,{"$f":"+IFERROR(MIN(E12,10000*#REF!)/(173*#REF!),\"\")","v":""}]
[null,6,null,null,null,null,0,null,null,null,null,{"$f":"+IFERROR(MIN(E13,10000*#REF!)/(173*#REF!),\"\")","v":""}]
[null,7,null,null,null,null,0,null,null,null,null,{"$f":"+IFERROR(MIN(E14,10000*#REF!)/(173*#REF!),\"\")","v":""}]
[null,8,null,null,null,null,0,null,null,null,null,{"$f":"+IFERROR(MIN(E15,10000*#REF!)/(173*#REF!),\"\")","v":""}]
[null,9,null,null,null,null,0,null,null,null,null,{"$f":"+IFERROR(MIN(E16,10000*#REF!)/(173*#REF!),\"\")","v":""}]
[null,10,null,null,null,null,0,null,null,null,null,{"$f":"+IFERROR(MIN(E17,10000*#REF!)/(173*#REF!),\"\")","v":""}]
[null,11,null,null,null,null,0,null,null,null,null,{"$f":"+IFERROR(MIN(E18,10000*#REF!)/(173*#REF!),\"\")","v":""}]
[null,12,null,null,null,null,0,null,null,null,null,{"$f":"+IFERROR(MIN(E19,10000*#REF!)/(173*#REF!),\"\")","v":""}]
[null,13,null,null,null,null,0,null,null,null,null,{"$f":"+IFERROR(MIN(E20,10000*#REF!)/(173*#REF!),\"\")","v":""}]
[null,14,null,null,null,null,0,null,null,null,null,{"$f":"+IFERROR(MIN(E21,10000*#REF!)/(173*#REF!),\"\")","v":""}]
[null,15,null,null,null,null,0,null,null,null,null,{"$f":"+IFERROR(MIN(E22,10000*#REF!)/(173*#REF!),\"\")","v":""}]
[null,16,null,null,null,null,0,null,null,null,null,{"$f":"+IFERROR(MIN(E23,10000*#REF!)/(173*#REF!),\"\")","v":""}]
[null,17,null,null,null,null,0,null,null,null,null,{"$f":"+IFERROR(MIN(E24,10000*#REF!)/(173*#REF!),\"\")","v":""}]
[null,18,null,null,null,null,0,null,null,null,null,{"$f":"+IFERROR(MIN(E25,10000*#REF!)/(173*#REF!),\"\")","v":""}]
[null,19,null,null,null,null,0,null,null,null,null,{"$f":"+IFERROR(MIN(E26,10000*#REF!)/(173*#REF!),\"\")","v":""}]
[null,20,null,null,null,null,0,null,null,null,null,{"$f":"+IFERROR(MIN(E27,10000*#REF!)/(173*#REF!),\"\")","v":""}]
[null,21,null,null,null,null,0,null,null,null,null,{"$f":"+IFERROR(MIN(E28,10000*#REF!)/(173*#REF!),\"\")","v":""}]
[null,22,null,null,null,null,0,null,null,null,null,{"$f":"+IFERROR(MIN(E29,10000*#REF!)/(173*#REF!),\"\")","v":""}]
[null,23,null,null,null,null,0,null,null,null,null,{"$f":"+IFERROR(MIN(E30,10000*#REF!)/(173*#REF!),\"\")","v":""}]
[null,24,null,null,null,null,0,null,null,null,null,{"$f":"+IFERROR(MIN(E31,10000*#REF!)/(173*#REF!),\"\")","v":""}]
[null,25,null,null,null,null,0,null,null,null,null,{"$f":"+IFERROR(MIN(E32,10000*#REF!)/(173*#REF!),\"\")","v":""}]
[null,26,null,null,null,null,0,null,null,null,null,{"$f":"+IFERROR(MIN(E33,10000*#REF!)/(173*#REF!),\"\")","v":""}]
[null,27,null,null,null,null,0,null,null,null,null,{"$f":"+IFERROR(MIN(E34,10000*#REF!)/(173*#REF!),\"\")","v":""}]
[null,28,null,null,null,null,0,null,null,null,null,{"$f":"+IFERROR(MIN(E35,10000*#REF!)/(173*#REF!),\"\")","v":""}]
[null,29,null,null,null,null,0,null,null,null,null,{"$f":"+IFERROR(MIN(E36,10000*#REF!)/(173*#REF!),\"\")","v":""}]
[null,30,null,null,null,null,0,null,null,null,null,{"$f":"+IFERROR(MIN(E37,10000*#REF!)/(173*#REF!),\"\")","v":""}]
[null,31,null,null,null,null,0,null,null,null,null,{"$f":"+IFERROR(MIN(E38,10000*#REF!)/(173*#REF!),\"\")","v":""}]
[null,32,null,null,null,null,0,null,null,null,null,{"$f":"+IFERROR(MIN(E39,10000*#REF!)/(173*#REF!),\"\")","v":""}]
[null,33,null,null,null,null,0,null,null,null,null,{"$f":"+IFERROR(MIN(E40,10000*#REF!)/(173*#REF!),\"\")","v":""}]
[null,34,null,null,null,null,0,null,null,null,null,{"$f":"+IFERROR(MIN(E41,10000*#REF!)/(173*#REF!),\"\")","v":""}]
[null,35,null,null,null,null,0,null,null,null,null,{"$f":"+IFERROR(MIN(E42,10000*#REF!)/(173*#REF!),\"\")","v":""}]
[null,36,null,null,null,null,0,null,null,null,null,{"$f":"+IFERROR(MIN(E43,10000*#REF!)/(173*#REF!),\"\")","v":""}]
[null,37,null,null,null,null,0,null,null,null,null,{"$f":"+IFERROR(MIN(E44,10000*#REF!)/(173*#REF!),\"\")","v":""}]
[null,38,null,null,null,null,0,null,null,null,null,{"$f":"+IFERROR(MIN(E45,10000*#REF!)/(173*#REF!),\"\")","v":""}]
[null,39,null,null,null,null,0,null,null,null,null,{"$f":"+IFERROR(MIN(E46,10000*#REF!)/(173*#REF!),\"\")","v":""}]
[null,40,null,null,null,null,0,null,null,null,null,{"$f":"+IFERROR(MIN(E47,10000*#REF!)/(173*#REF!),\"\")","v":""}]
[]
[null,null,"Total dépenses",null,null,null,{"$f":"+SUM(G8:G48)","v":0}]

{"sheet":"F. Dép. en formation","index":7,"n_rows":52,"n_cols":9,"rows_kept":52,"cut":false,"hidden":true,"merged":[[6,8,8,8],[6,4,8,4],[0,2,0,8],[30,7,32,7],[30,8,32,8],[30,2,32,2],[30,3,32,3],[30,4,32,4],[30,5,32,5],[30,6,32,6],[6,2,8,2],[6,3,8,3],[6,5,8,5],[6,6,8,6],[6,7,8,7]]}
[null,null,"F. Dépenses en formation du personnel\nSont concernées les formations données par le personnel directement impliqué dans le projet (voir 1. ci-dessous) ou par des tiers (voir 2. ci-dessous). Les coûts du personnel qui suit ces formations lors de la phase du roll-out (utilisateurs finaux) du projet ne sont pas éligibles."]
[]
[null,null,"Période d'admissibilité des coûts ",{"$f":"'1. Informations générales'!C24","v":"00:00:00"},"au",{"$f":"'1. Informations générales'!C25","v":"00:00:00"}]
[]
[null,null,"1. Coût de formations données par le personnel directement impliqué dans le projet "]
[]
[null,null,"Nom du collaborateur chargé de dispenser la formation","Fonction","type de formation (e.g. AI, machine learning, predictive maintenance)","Salaire mensuel brut moyen de l'exercice d'exploitation \n(en €)","Total heures sur le projet pendant la période d'éligibilité des coûts (en €)","Dépenses réelles et éligibles  (en €)","Remarque bénéficiaire"]
[]
[]
[null,1,null,null,null,null,null,{"$f":"F10/173*G10","v":0}]
[null,{"$f":"1+B10","v":2},null,null,null,null,null,{"$f":"F11/173*G11","v":0}]
[null,{"$f":"1+B11","v":3},null,null,null,null,null,0]
[null,4,null,null,null,null,null,0]
[null,5,null,null,null,null,null,0]
[null,6,null,null,null,null,null,0]
[null,7,null,null,null,null,null,0]
[null,8,null,null,null,null,null,0]
[null,9,null,null,null,null,null,0]
[null,10,null,null,null,null,null,0]
[null,11,null,null,null,null,null,0]
[null,12,null,null,null,null,null,0]
[null,13,null,null,null,null,null,0]
[null,14,null,null,null,null,null,0]
[null,15,null,null,null,null,null,0]
[]
[null,null,"Total dépenses",null,null,null,{"$f":"+SUM(G10:G25)","v":0},{"$f":"+SUM(H10:H25)","v":0}]
[]
[]
[null,null,"2. Coûts de formations données par des tiers au personnel directement impliqué dans le projet "]
[]
[null,null,"Fournisseur (raison sociale et code pays (e.g. LU, FR, BE)","type de formation (e.g. AI, machine learning, predictive maintenance)","Numéro de facture","Date de comptabilisation","Coût d'acquisition hTVA (déduction faite des RRR) (en €)","Coûts dans période d'éligibilité des coûts (en €)","Remarque bénéficiaire"]
[]
[]
[null,1,null,null,null,null,null,{"$f":"IF(AND(F34>='1. Informations générales'!$C$24,F34<='1. Informations générales'!$C$25),G34,\"0.00 €\")","v":0}]
[null,{"$f":"1+B34","v":2},null,null,null,null,null,{"$f":"IF(AND(F35>='1. Informations générales'!$C$24,F35<='1. Informations générales'!$C$25),G35,\"0.00 €\")","v":0}]
[null,{"$f":"1+B35","v":3},null,null,null,null,null,{"$f":"IF(AND(F36>='1. Informations générales'!$C$24,F36<='1. Informations générales'!$C$25),G36,\"0.00 €\")","v":0}]
[null,4,null,null,null,null,null,{"$f":"IF(AND(F37>='1. Informations générales'!$C$24,F37<='1. Informations générales'!$C$25),G37,\"0.00 €\")","v":0}]
[null,5,null,null,null,null,null,{"$f":"IF(AND(F38>='1. Informations générales'!$C$24,F38<='1. Informations générales'!$C$25),G38,\"0.00 €\")","v":0}]
[null,6,null,null,null,null,null,{"$f":"IF(AND(F39>='1. Informations générales'!$C$24,F39<='1. Informations générales'!$C$25),G39,\"0.00 €\")","v":0}]
[null,7,null,null,null,null,null,{"$f":"IF(AND(F40>='1. Informations générales'!$C$24,F40<='1. Informations générales'!$C$25),G40,\"0.00 €\")","v":0}]
[null,8,null,null,null,null,null,{"$f":"IF(AND(F41>='1. Informations générales'!$C$24,F41<='1. Informations générales'!$C$25),G41,\"0.00 €\")","v":0}]
[null,9,null,null,null,null,null,{"$f":"IF(AND(F42>='1. Informations générales'!$C$24,F42<='1. Informations générales'!$C$25),G42,\"0.00 €\")","v":0}]
[null,10,null,null,null,null,null,{"$f":"IF(AND(F43>='1. Informations générales'!$C$24,F43<='1. Informations générales'!$C$25),G43,\"0.00 €\")","v":0}]
[null,11,null,null,null,null,null,{"$f":"IF(AND(F44>='1. Informations générales'!$C$24,F44<='1. Informations générales'!$C$25),G44,\"0.00 €\")","v":0}]
[null,12,null,null,null,null,null,{"$f":"IF(AND(F45>='1. Informations générales'!$C$24,F45<='1. Informations générales'!$C$25),G45,\"0.00 €\")","v":0}]
[null,13,null,null,null,null,null,{"$f":"IF(AND(F46>='1. Informations générales'!$C$24,F46<='1. Informations générales'!$C$25),G46,\"0.00 €\")","v":0}]
[null,14,null,null,null,null,null,{"$f":"IF(AND(F47>='1. Informations générales'!$C$24,F47<='1. Informations générales'!$C$25),G47,\"0.00 €\")","v":0}]
[null,15,null,null,null,null,null,{"$f":"IF(AND(F48>='1. Informations générales'!$C$24,F48<='1. Informations générales'!$C$25),G48,\"0.00 €\")","v":0}]
[]
[null,null,"Total dépenses",null,null,null,{"$f":"+SUM(G34:G49)","v":0},{"$f":"SUM(H34:H49)","v":0}]
[]
[null,null,"Total dépenses",null,null,null,null,{"$f":"H26+H50","v":0}]

{"sheet":"3. Synthèse financière","index":8,"n_rows":22,"n_cols":5,"rows_kept":22,"cut":false,"hidden":false,"merged":[[1,1,1,4]]}
[]
[null,"3. Synthèse financière"]
[]
[null,"A. INVESTISSEMENTS (CapEx)","Prix d’acquisition \nou de revient \n(en €)","Subventions versées au cours de l'exercice d'exploitation\n(en €)","Prix d’acquisition \nou de revient éligibles\n(en €)"]
[null,"A. Investissement en bien(s) corporel(s)",{"$f":"'A. Invest bien corp.'!H49","v":0},0,{"$f":"C5-D5","v":0}]
[null,"B. Investissement en logiciel(s) ou brevet(s)",{"$f":"'B. Invest logiciel brevet'!H49","v":0},0,{"$f":"C6-D6","v":0}]
[null,"A.        Total des investissements",{"$f":"C5+C6","v":0},{"$f":"D5+D6","v":0},{"$f":"E5+E6","v":0}]
[null,"B. DEPENSES D’EXPLOITATION (OpEx)","Dépenses  d’exploitation (en €)","Subventions versées au cours de l'exercice d'exploitation\n(en €)","Dépenses  d’exploitation éligibles (en €)"]
[null,"C. Dépenses de brevets ou de logiciels ",{"$f":"'C. Dép. brevet logiciel'!H49","v":0},0,{"$f":"C9-D9","v":0}]
[null,"D. Dépenses de service(s) de prestataire(s) extérieur(s)",{"$f":"'D. Dép. prest. extérieurs'!H49","v":0},0,{"$f":"C10-D10","v":0}]
[null,"E. Dépenses de personnel ",{"$f":"'E. Dép. de personnel'!G49","v":0},0,{"$f":"C11-D11","v":0}]
[null,"F. Dépenses en formation du personnel",{"$f":"'F. Dép. en formation'!H52","v":0},0,{"$f":"C12-D12","v":0}]
[null,"B.        Total des dépenses d’exploitation",{"$f":"C9+C10+C11+C12","v":0},{"$f":"D9+D10+D11+D12","v":0},{"$f":"E9+E10+E11+E12","v":0}]
[null,"Montant total des coûts du projet (A + B) ",{"$f":"C7+C13","v":0},{"$f":"D7+D13","v":0},{"$f":"E7+E13","v":0}]
[]
[null,"Montant total des coûts éligibles accordée selon l'attestation d'éligibilité",null,null,{"$f":"'1. Informations générales'!C26","v":0}]
[]
[null,"Total coûts éligibles sur certificats déjà émis",null,null,{"$f":"'1. Informations générales'!C41","v":0}]
[]
[null,"Montant des coûts éligibles du certificat à émettre pour l'exercice d'exploitation concerné",null,null,{"$f":"E14","v":0}]
[]
[null,"Montant des coûts éligibles restant disponible après ce certificat",null,null,{"$f":"+E16-E18-E20","v":0}]